fUSD/lending_fUSD_20250930
["ID","MTS","AMOUNT","RATE_DAILY","PERIOD"]
[388505441,1759222251116,-500.0,0.00019771,2]
[388505442,1759222251126,-5951.17,0.00019771,2]
[388505443,1759222251136,-500.0,0.00019771,2]
[388505444,1759222251145,-1802.85,0.00019771,2]
[388505445,1759222251154,-1501.52,0.00019771,2]
[388505446,1759222251163,-3668.1,0.00019771,2]
[388505447,1759222251172,-3505.17,0.00019771,2]
[388505448,1759222251180,-4418.25,0.00019771,2]
[388505449,1759222251189,-14768.87,0.00019771,2]
[388505450,1759222251199,-500.0,0.00019771,2]
[388505451,1759222251208,-500.0,0.00019771,2]
[388505452,1759222251217,-1478.39,0.00019771,2]
[388505453,1759222251226,-201.35614263,0.00019771,2]
[388505454,1759222251236,-2920.22,0.00019771,2]
[388505455,1759222251244,-500.0,0.00019771,2]
[388505456,1759222251254,-6997.27,0.00019771,2]
[388505457,1759222251263,-3353.8,0.00019771,2]
[388505458,1759222251271,-500.0,0.00019771,2]
[388505459,1759222251282,-4434.15,0.00019771,2]
[388505460,1759222251291,-500.0,0.00019771,2]
[388505461,1759222251300,-500.0,0.00019771,2]
[388505462,1759222251310,-500.0,0.00019771,2]
[388505463,1759222251319,-3993.41,0.00019771,2]
[388505464,1759222251327,-1446.03,0.00019771,2]
[388505465,1759222251337,-3285.52,0.00019771,2]
[388505466,1759222251346,-500.0,0.00019771,2]
[388505467,1759222251355,-3043.85,0.00019771,2]
[388505468,1759222251364,-2686.9,0.00019771,2]
[388505469,1759222251373,-20154.19,0.00019771,2]
[388505471,1759222251383,-500.0,0.00019771,2]
[388505472,1759222251393,-500.0,0.00019771,2]
[388505473,1759222251402,-682.12,0.00019771,2]
[388505474,1759222251411,-5390.81,0.00019771,2]
[388505475,1759222251421,-500.0,0.00019771,2]
[388505476,1759222251430,-293.7114525,0.00019771,2]
[388505477,1759222251439,-15163.21,0.00019771,2]
[388505478,1759222251447,-12794.88,0.00019771,2]
[388505479,1759222251457,-500.0,0.00019771,2]
[388505480,1759222251466,-500.0,0.00019771,2]
[388505481,1759222251476,-6993.68,0.00019771,2]
[388505482,1759222251484,-3438.19,0.00019771,2]
[388505483,1759222251494,-1400.51,0.00019771,2]
[388505484,1759222251503,-500.0,0.00019771,2]
[388505485,1759222251512,-4234.71,0.00019771,2]
[388505486,1759222251521,-500.0,0.00019771,2]
[388505487,1759222251530,-500.0,0.00019771,2]
[388505488,1759222251540,-2803.76,0.00019771,2]
[388505489,1759222251549,-3673.54,0.00019771,2]
[388505490,1759222251558,-4005.87,0.00019771,2]
[388505491,1759222251567,-500.0,0.00019771,2]
[388505492,1759222251576,-500.0,0.00019771,2]
[388505493,1759222251585,-5511.44,0.00019771,2]
[388505494,1759222251594,-600.83,0.00019771,2]
[388505495,1759222251603,-500.0,0.00019771,2]
[388505496,1759222251612,-4146.06,0.00019771,2]
[388505497,1759222251621,-740.8,0.00019771,2]
[388505498,1759222251630,-500.0,0.00019771,2]
[388505499,1759222251639,-500.0,0.00019771,2]
[388505500,1759222251648,-888.27,0.00019771,2]
[388505501,1759222251657,-3896.25,0.00019771,2]
[388505502,1759222251666,-568.87,0.00019771,2]
[388505503,1759222251675,-9249.71,0.00019771,2]
[388505504,1759222251685,-500.0,0.00019771,2]
[388505505,1759222251695,-500.0,0.00019771,2]
[388505506,1759222251705,-653.18,0.00019771,2]
[388505507,1759222251713,-3086.9,0.00019771,2]
[388505508,1759222251723,-11247.37,0.00019771,2]
[388505509,1759222251732,-500.0,0.00019771,2]
[388505510,1759222251744,-500.0,0.00019771,2]
[388505511,1759222251753,-4392.25,0.00019771,2]
[388505512,1759222251763,-500.0,0.00019771,2]
[388505513,1759222251772,-500.0,0.00019771,2]
[388505514,1759222251780,-500.0,0.00019771,2]
[388505515,1759222251790,-5713.65,0.00019771,2]
[388505516,1759222251799,-5823.49,0.00019771,2]
[388505517,1759222251808,-2784.03,0.00019771,2]
[388505518,1759222251817,-500.0,0.00019771,2]
[388505519,1759222251826,-500.0,0.00019771,2]
[388505520,1759222251834,-3797.21,0.00019771,2]
[388505521,1759222251843,-1015.92,0.00019771,2]
[388505522,1759222251853,-500.0,0.00019771,2]
[388505523,1759222251862,-500.0,0.00019771,2]
[388505524,1759222251871,-500.0,0.00019772,2]
[388505525,1759222251880,-533.33,0.00019772,2]
[388505526,1759222251889,-708.93,0.00019772,2]
[388505527,1759222251897,-500.0,0.00019772,2]
[388505528,1759222251906,-500.0,0.00019772,2]
[388505529,1759222251915,-588.03,0.00019772,2]
[388505530,1759222251924,-500.0,0.00019772,2]
[388505531,1759222251933,-537.37,0.00019772,2]
[388505533,1759222251942,-505.06,0.00019772,2]
[388505534,1759222251951,-2397.7,0.00019772,2]
[388505535,1759222251959,-2297.8,0.00019772,2]
[388505536,1759222251968,-500.0,0.00019772,2]
[388505537,1759222251977,-1214.64,0.00019772,2]
[388505538,1759222251986,-615.58,0.00019772,2]
[388505539,1759222251995,-500.0,0.00019772,2]
[388505540,1759222252004,-722.9,0.00019772,2]
[388505541,1759222252013,-520.08,0.00019772,2]
[388505542,1759222252022,-500.0,0.00019772,2]
[388505543,1759222252031,-500.0,0.00019772,2]
[388505544,1759222252040,-3108.5,0.00019772,2]
[388505545,1759222252049,-918.19,0.00019772,2]
[388505546,1759222252058,-2849.81,0.00019772,2]
[388505547,1759222252068,-500.0,0.00019772,2]
[388505548,1759222252078,-500.0,0.00019772,2]
[388505549,1759222252087,-1675.98,0.00019772,2]
[388505550,1759222252095,-904.45,0.00019772,2]
[388505551,1759222252105,-500.0,0.00019772,2]
[388505552,1759222252115,-500.0,0.00019772,2]
[388505553,1759222252124,-540.7,0.00019772,2]
[388505554,1759222252133,-943.52,0.00019772,2]
[388505555,1759222252142,-760.44,0.00019772,2]
[388505556,1759222252150,-592.71,0.00019772,2]
[388505557,1759222252159,-2475.84,0.00019772,2]
[388505558,1759222252168,-2475.84,0.00019772,2]
[388505559,1759222252177,-4475.02,0.00019772,2]
[388505560,1759222252186,-590.79,0.00019772,2]
[388505561,1759222252195,-590.79,0.00019772,2]
[388505562,1759222252205,-4720.8,0.00019772,2]
[388505563,1759222252215,-1850.67,0.00019772,2]
[388505564,1759222252225,-5036.93,0.00019772,2]
[388505565,1759222252233,-5236.54,0.00019772,2]
[388505566,1759222252242,-4678.05,0.00019772,2]
[388505568,1759222252251,-851.92,0.00019772,2]
[388505569,1759222252261,-2987.33,0.00019772,2]
[388505570,1759222252270,-3339.45,0.00019772,2]
[388505571,1759222252279,-10452.11,0.00019772,2]
[388505572,1759222252288,-4995.98,0.00019772,2]
[388505573,1759222252297,-2555.4,0.00019772,2]
[388505574,1759222252306,-500.0,0.00019772,2]
[388505575,1759222252316,-6174.75,0.00019772,2]
[388505576,1759222252325,-5792.24,0.00019772,2]
[388505577,1759222252334,-5116.3,0.00019772,2]
[388505578,1759222252343,-6892.1,0.00019772,2]
[388505579,1759222252352,-5662.45,0.00019772,2]
[388505580,1759222252361,-7559.82,0.00019772,2]
[388505581,1759222252370,-8643.49,0.00019772,2]
[388505582,1759222252379,-9096.07,0.00019772,2]
[388505583,1759222252389,-4427.56,0.00019772,2]
[388505584,1759222252398,-4013.27,0.00019772,2]
[388505585,1759222252408,-500.0,0.00019772,2]
[388505586,1759222252417,-500.0,0.00019772,2]
[388505587,1759222252426,-4704.56,0.00019772,2]
[388505588,1759222252436,-1568.19,0.00019772,2]
[388505589,1759222252445,-3433.57,0.00019772,2]
[388505590,1759222252454,-1647.36,0.00019773,2]
[388505591,1759222252463,-500.0,0.00019773,2]
[388505592,1759222252472,-1786.75,0.00019773,2]
[388505593,1759222252481,-1712.3,0.00019773,2]
[388505594,1759222252491,-1894.4,0.00019773,2]
[388505595,1759222252500,-2554.03,0.00019773,2]
[388505596,1759222252509,-500.0,0.00019773,2]
[388505597,1759222252518,-926.37,0.00019773,2]
[388505598,1759222252527,-1166.96,0.00019773,2]
[388505599,1759222252536,-670.07,0.00019773,2]
[388505600,1759222252545,-500.0,0.00019773,2]
[388505601,1759222252554,-1132.21,0.00019773,2]
[388505602,1759222252563,-1045.48,0.00019773,2]
[388505603,1759222252573,-908.88,0.00019773,2]
[388505604,1759222252582,-834.56,0.00019773,2]
[388505605,1759222252591,-2042.38,0.00019773,2]
[388505606,1759222252601,-3118.41,0.00019773,2]
[388505607,1759222252610,-3715.55,0.00019773,2]
[388505608,1759222252619,-5949.4,0.00019773,2]
[388505609,1759222252629,-657.21,0.00019773,2]
[388505610,1759222252638,-1921.44,0.00019773,2]
[388505611,1759222252647,-1137.97,0.00019773,2]
[388505612,1759222252656,-1906.7,0.00019773,2]
[388505613,1759222252665,-1872.57,0.00019773,2]
[388505614,1759222252674,-5579.32,0.00019773,2]
[388505616,1759222252684,-816.76,0.00019773,2]
[388505617,1759222252693,-4108.57,0.00019773,2]
[388505618,1759222252702,-350.58599822,0.00019773,2]
[388505619,1759222252711,-3872.06,0.00019773,2]
[388505620,1759222252720,-5903.16,0.00019773,2]
[388505621,1759222252729,-5012.62,0.00019773,2]
[388505622,1759222252743,-982.97,0.00019773,2]
[388505623,1759222252753,-3832.27,0.00019773,2]
[388505624,1759222252761,-2367.23,0.00019773,2]
[388505625,1759222252770,-5528.02,0.00019773,2]
[388505626,1759222252781,-4022.77,0.00019773,2]
[388505627,1759222252790,-2073.88,0.00019773,2]
[388505628,1759222252799,-4864.15,0.00019773,2]
[388505629,1759222252809,-4315.33,0.00019773,2]
[388505630,1759222252820,-2041.8,0.00019773,2]
[388505631,1759222252829,-3790.97,0.00019773,2]
[388505632,1759222252838,-4879.9,0.00019773,2]
[388505633,1759222252847,-3532.37,0.00019773,2]
[388505634,1759222252857,-2140.2,0.00019773,2]
[388505635,1759222252867,-4374.49,0.00019773,2]
[388505636,1759222252877,-638.45,0.00019773,2]
[388505637,1759222252887,-4453.18,0.00019773,2]
[388505638,1759222252898,-500.0,0.00019773,2]
[388505639,1759222252908,-3020.42,0.00019773,2]
[388505640,1759222252918,-4505.32,0.00019773,2]
[388505641,1759222252927,-3687.2,0.00019773,2]
[388505642,1759222252937,-2309.68,0.00019773,2]
[388505643,1759222252946,-3617.08,0.00019773,2]
[388505644,1759222252956,-4775.43,0.00019773,2]
[388505645,1759222252966,-1466.08,0.00019773,2]
[388505646,1759222252975,-5280.82,0.00019773,2]
[388505647,1759222252986,-4850.45,0.00019773,2]
[388505648,1759222252995,-3914.18,0.00019773,2]
[388505649,1759222253004,-5688.68,0.00019773,2]
[388505650,1759222253013,-500.0,0.00019773,2]
[388505651,1759222253022,-500.0,0.00019773,2]
[388505652,1759222253031,-3172.74,0.00019773,2]
[388505653,1759222253040,-4961.24,0.00019773,2]
[388505654,1759222253050,-1923.52,0.00019773,2]
[388505655,1759222253059,-4331.03,0.00019773,2]
[388505656,1759222253069,-5490.25,0.00019773,2]
[388505657,1759222253078,-2290.75,0.00019773,2]
[388505658,1759222253088,-3042.78,0.00019773,2]
[388505659,1759222253097,-2078.35,0.00019773,2]
[388505660,1759222253107,-1055.49,0.00019773,2]
[388505661,1759222253116,-1887.1,0.00019773,2]
[388505662,1759222253126,-2061.3,0.00019773,2]
[388505663,1759222253136,-500.0,0.00019773,2]
[388505664,1759222253145,-1899.39,0.00019773,2]
[388505665,1759222253154,-500.0,0.00019773,2]
[388505666,1759222253164,-500.0,0.00019773,2]
[388505667,1759222253173,-1455.51,0.00019773,2]
[388505668,1759222253184,-568.29,0.00019773,2]
[388505669,1759222253194,-3610.17,0.00019773,2]
[388505670,1759222253203,-897.45,0.00019773,2]
[388505671,1759222253213,-3431.07,0.00019773,2]
[388505672,1759222253223,-3505.03,0.00019773,2]
[388505673,1759222253234,-538.74,0.00019773,2]
[388505674,1759222253244,-4213.52,0.00019773,2]
[388505675,1759222253254,-2781.56,0.00019773,2]
[388505676,1759222253264,-2553.15,0.00019773,2]
[388505677,1759222253273,-500.0,0.00019773,2]
[388505678,1759222253283,-5709.31,0.00019773,2]
[388505679,1759222253293,-510.04904677,0.00019773,2]
[388505680,1759222253302,-934.11,0.00019773,2]
[388505681,1759222253312,-5075.04,0.00019773,2]
[388505682,1759222253322,-3479.36,0.00019773,2]
[388505683,1759222253331,-3568.36,0.00019773,2]
[388505684,1759222253341,-5643.91,0.00019773,2]
[388505685,1759222253351,-3825.48,0.00019773,2]
[388505686,1759222253360,-500.0,0.00019773,2]
[388505687,1759222253369,-1951.15,0.00019773,2]
[388505688,1759222253379,-2405.34,0.00019773,2]
[388505689,1759222253389,-3690.27,0.00019773,2]
[388505690,1759222253398,-888.77,0.00019773,2]
[388505691,1759222253407,-2917.77,0.00019773,2]
[388505692,1759222253416,-3500.58,0.00019773,2]
[388505693,1759222253426,-3767.82,0.00019773,2]
[388505694,1759222253435,-3628.14,0.00019773,2]
[388505695,1759222253444,-4694.09,0.00019773,2]
[388505696,1759222253455,-1074.93,0.00019773,2]
[388505697,1759222253465,-2728.25,0.00019773,2]
[388505698,1759222253474,-500.0,0.00019773,2]
[388505699,1759222253484,-2812.54,0.00019773,2]
[388505700,1759222253493,-976.54,0.00019773,2]
[388505701,1759222253504,-3831.76,0.00019773,2]
[388505702,1759222253513,-1616.43,0.00019773,2]
[388505703,1759222253523,-500.0,0.00019773,2]
[388505704,1759222253533,-3888.72,0.00019773,2]
[388505705,1759222253542,-4280.39,0.00019773,2]
[388505706,1759222253551,-500.0,0.00019773,2]
[388505707,1759222253560,-2383.66,0.00019773,2]
[388505708,1759222253570,-866.75,0.00019773,2]
[388505709,1759222253579,-500.0,0.00019773,2]
[388505710,1759222253589,-2826.1,0.00019773,2]
[388505711,1759222253598,-1850.54,0.00019773,2]
[388505712,1759222253608,-1044.74,0.00019773,2]
[388505713,1759222253617,-654.86,0.00019773,2]
[388505714,1759222253627,-1459.72,0.00019773,2]
[388505715,1759222253636,-533.4,0.00019773,2]
[388505716,1759222253647,-1156.97,0.00019773,2]
[388505717,1759222253657,-500.0,0.00019773,2]
[388505718,1759222253667,-525.44,0.00019773,2]
[388505719,1759222253676,-3534.50822805,0.00019781,2]
[388505720,1759222253686,-1931.35776489,0.00019788,2]
[388505721,1759222253695,-3080.41267582,0.00019788,2]
[388505722,1759222253704,-1156.05612,0.000198,2]
[388505723,1759222253714,-300.0,0.000198,7]
[388505724,1759222253724,-496.0,0.00019822,2]
[388505725,1759222253737,-496.0,0.00019832,2]
[388505726,1759222253747,-1931.35776489,0.00019844,2]
[388505727,1759222253757,-3080.41267582,0.00019844,2]
[388505728,1759222253766,-4977.4067848,0.00019859,2]
[388505729,1759222253777,-2018.964,0.00019881,2]
[388505730,1759222253787,-6877.40464792,0.00019882,2]
[388505731,1759222253796,-3534.50822805,0.0001989,2]
[388505732,1759222253807,-1795.64268297,0.00019892,2]
[388505733,1759222253817,-159.67638573,0.00019894,2]
[388505734,1759222253826,-590.79,0.00019898,2]
[388505735,1759222253836,-500.0,0.00019898,2]
[388505736,1759222253845,-500.0,0.00019899,2]
[388505737,1759222253854,-993.62,0.00019899,2]
[388505738,1759222253864,-500.0,0.00019899,2]
[388505739,1759222253873,-500.0,0.00019899,2]
[388505740,1759222253883,-849.95,0.00019899,2]
[388505741,1759222253893,-500.0,0.00019899,2]
[388505742,1759222253904,-1529.39,0.00019899,2]
[388505743,1759222253914,-500.0,0.00019899,2]
[388505744,1759222253923,-500.0,0.00019899,2]
[388505745,1759222253933,-2724.84,0.00019899,2]
[388505746,1759222253943,-500.0,0.00019899,2]
[388505747,1759222253952,-500.0,0.00019899,2]
[388505748,1759222253961,-500.0,0.00019899,2]
[388505749,1759222253971,-1124.49,0.00019899,2]
[388505750,1759222253981,-905.32,0.00019899,2]
[388505751,1759222253990,-500.0,0.00019899,2]
[388505752,1759222254000,-500.0,0.00019899,2]
[388505753,1759222254009,-531.95,0.00019899,2]
[388505754,1759222254019,-500.0,0.00019899,2]
[388505755,1759222254029,-500.0,0.00019899,2]
[388505756,1759222254038,-650.32,0.00019899,2]
[388505757,1759222254048,-500.0,0.00019899,2]
[388505758,1759222254057,-332.79165955,0.00019899,2]
[388505759,1759222254066,-500.0,0.00019899,2]
[388505760,1759222254075,-1313.79,0.00019899,2]
[388505761,1759222254084,-500.0,0.00019899,2]
[388505762,1759222254094,-500.0,0.00019899,2]
[388505763,1759222254103,-500.0,0.00019899,2]
[388505764,1759222254113,-613.04,0.00019899,2]
[388505765,1759222254122,-841.5,0.00019899,2]
[388505766,1759222254132,-896.64,0.00019899,2]
[388505767,1759222254142,-538.22,0.00019899,2]
[388505768,1759222254151,-500.0,0.00019899,2]
[388505769,1759222254161,-850.21,0.00019899,2]
[388505770,1759222254172,-682.88,0.00019899,2]
[388505771,1759222254181,-500.0,0.00019899,2]
[388505772,1759222254191,-909.7,0.00019899,2]
[388505773,1759222254201,-1507.27,0.00019899,2]
[388505774,1759222254210,-500.0,0.00019899,2]
[388505775,1759222254220,-526.63,0.00019899,2]
[388505776,1759222254230,-2993.72,0.00019899,2]
[388505777,1759222254239,-500.0,0.00019899,2]
[388505778,1759222254249,-500.0,0.00019899,2]
[388505779,1759222254258,-922.64,0.00019899,2]
[388505780,1759222254267,-500.0,0.00019899,2]
[388505781,1759222254275,-500.0,0.00019899,2]
[388505782,1759222254285,-500.0,0.00019899,2]
[388505783,1759222254295,-691.56,0.00019899,2]
[388505784,1759222254304,-500.0,0.00019899,2]
[388505785,1759222254314,-500.0,0.00019899,2]
[388505786,1759222254323,-500.0,0.00019899,2]
[388505787,1759222254333,-1647.28,0.00019899,2]
[388505788,1759222254342,-1229.66,0.00019899,2]
[388505789,1759222254351,-1765.21,0.00019899,2]
[388505790,1759222254360,-500.0,0.00019899,2]
[388505791,1759222254370,-882.57,0.00019899,2]
[388505792,1759222254379,-500.0,0.00019899,2]
[388505793,1759222254389,-1774.39,0.00019899,2]
[388505794,1759222254398,-500.0,0.00019899,2]
[388505795,1759222254407,-767.19,0.00019899,2]
[388505796,1759222254416,-1530.67,0.00019899,2]
[388505797,1759222254425,-500.0,0.00019899,2]
[388505798,1759222254434,-717.58,0.00019899,2]
[388505799,1759222254444,-500.0,0.00019899,2]
[388505800,1759222254453,-1747.92,0.00019899,2]
[388505801,1759222254462,-500.0,0.00019899,2]
[388505802,1759222254471,-3235.76,0.00019899,2]
[388505803,1759222254480,-772.98,0.00019899,2]
[388505804,1759222254489,-500.0,0.00019899,2]
[388505805,1759222254499,-3413.38,0.00019899,2]
[388505806,1759222254508,-500.0,0.00019899,2]
[388505807,1759222254517,-883.03,0.00019899,2]
[388505808,1759222254526,-559.06,0.00019899,2]
[388505809,1759222254535,-500.0,0.00019899,2]
[388505810,1759222254545,-664.17,0.00019899,2]
[388505811,1759222254554,-2785.32,0.00019899,2]
[388505812,1759222254563,-500.0,0.00019899,2]
[388505813,1759222254573,-500.0,0.00019899,2]
[388505814,1759222254582,-1587.06,0.00019899,2]
[388505815,1759222254591,-1490.47,0.00019899,2]
[388505816,1759222254601,-500.0,0.00019899,2]
[388505817,1759222254610,-663.15,0.00019899,2]
[388505818,1759222254619,-500.0,0.00019899,2]
[388505819,1759222254629,-576.47,0.00019899,2]
[388505820,1759222254638,-1746.95,0.00019899,2]
[388505821,1759222254647,-500.0,0.00019899,2]
[388505822,1759222254656,-500.0,0.00019899,2]
[388505823,1759222254666,-1507.12,0.00019899,2]
[388505824,1759222254675,-1107.45,0.00019899,2]
[388505825,1759222254684,-806.88,0.00019899,2]
[388505826,1759222254694,-1329.42,0.00019899,2]
[388505827,1759222254885,-500.0,0.00019899,2]
[388505828,1759222254895,-500.0,0.00019899,2]
[388505829,1759222254904,-897.22,0.00019899,2]
[388505830,1759222254913,-500.0,0.00019899,2]
[388505831,1759222254922,-773.92,0.00019899,2]
[388505832,1759222254932,-500.0,0.00019899,2]
[388505833,1759222254941,-582.52,0.00019899,2]
[388505834,1759222254950,-1966.36,0.00019899,2]
[388505835,1759222254959,-500.0,0.00019899,2]
[388505836,1759222254969,-500.0,0.00019899,2]
[388505837,1759222254978,-500.0,0.00019899,2]
[388505838,1759222254987,-756.45,0.00019899,2]
[388505839,1759222254996,-500.0,0.00019899,2]
[388505840,1759222255007,-1236.31,0.00019899,2]
[388505841,1759222255016,-1781.4,0.00019899,2]
[388505842,1759222255025,-804.74,0.00019899,2]
[388505843,1759222255035,-500.0,0.00019899,2]
[388505844,1759222255044,-897.98,0.00019899,2]
[388505845,1759222255053,-500.0,0.00019899,2]
[388505846,1759222255063,-500.0,0.00019899,2]
[388505847,1759222255072,-2369.1,0.00019899,2]
[388505848,1759222255082,-500.0,0.00019899,2]
[388505849,1759222255091,-500.0,0.00019899,2]
[388505850,1759222255101,-684.43,0.00019899,2]
[388505851,1759222255111,-500.0,0.00019899,2]
[388505852,1759222255120,-500.0,0.00019899,2]
[388505853,1759222255130,-667.06,0.00019899,2]
[388505854,1759222255139,-2532.7,0.00019899,2]
[388505855,1759222255148,-310.91403671,0.00019899,2]
[388505856,1759222255158,-1184.46,0.00019899,2]
[388505857,1759222255167,-593.89,0.00019899,2]
[388505858,1759222255177,-500.0,0.00019899,2]
[388505859,1759222255187,-851.01,0.00019899,2]
[388505860,1759222255197,-518.3,0.00019899,2]
[388505861,1759222255206,-613.18639014,0.00019899,2]
[388505862,1759222255215,-500.0,0.00019899,2]
[388505863,1759222255224,-500.0,0.00019899,2]
[388505864,1759222255234,-705.08,0.00019899,2]
[388505865,1759222255243,-500.0,0.00019899,2]
[388505866,1759222255253,-500.0,0.00019899,2]
[388505867,1759222255264,-1750.97,0.00019899,2]
[388505868,1759222255273,-505.63,0.00019899,2]
[388505869,1759222255282,-3234.07,0.00019899,2]
[388505870,1759222255292,-509.32,0.00019899,2]
[388505871,1759222255301,-1894.52,0.00019899,2]
[388505872,1759222255312,-500.0,0.00019899,2]
[388505873,1759222255321,-1596.12,0.00019899,2]
[388505874,1759222255331,-500.0,0.00019899,2]
[388505875,1759222255341,-500.0,0.00019899,2]
[388505876,1759222255351,-2746.1,0.00019899,2]
[388505877,1759222255360,-3587.8,0.00019899,2]
[388505878,1759222255369,-500.0,0.00019899,2]
[388505879,1759222255379,-524.45,0.00019899,2]
[388505880,1759222255389,-500.0,0.00019899,2]
[388505881,1759222255398,-500.0,0.00019899,2]
[388505882,1759222255407,-500.0,0.00019899,2]
[388505883,1759222255417,-1458.08,0.00019899,2]
[388505884,1759222255427,-2737.19,0.00019899,2]
[388505885,1759222255436,-977.07,0.00019899,2]
[388505886,1759222255446,-500.0,0.00019899,2]
[388505887,1759222255457,-500.0,0.00019899,2]
[388505889,1759222255466,-500.0,0.00019899,2]
[388505890,1759222255475,-500.0,0.00019899,2]
[388505891,1759222255484,-542.58,0.00019899,2]
[388505892,1759222255494,-619.03,0.00019899,2]
[388505893,1759222255504,-500.0,0.00019899,2]
[388505894,1759222255513,-856.73,0.00019899,2]
[388505895,1759222255523,-1926.93,0.00019899,2]
[388505896,1759222255532,-500.0,0.00019899,2]
[388505897,1759222255542,-1100.51,0.00019899,2]
[388505898,1759222255552,-500.0,0.00019899,2]
[388505899,1759222255562,-500.0,0.00019899,2]
[388505900,1759222255571,-557.4,0.00019899,2]
[388505901,1759222255580,-500.0,0.00019899,2]
[388505902,1759222255589,-500.0,0.00019899,2]
[388505903,1759222255599,-986.07,0.00019899,2]
[388505904,1759222255608,-500.0,0.00019899,2]
[388505905,1759222255618,-500.0,0.00019899,2]
[388505906,1759222255627,-500.0,0.00019899,2]
[388505907,1759222255637,-587.63,0.00019899,2]
[388505908,1759222255647,-2135.24,0.00019899,2]
[388505909,1759222255656,-500.0,0.00019899,2]
[388505910,1759222255665,-500.0,0.00019899,2]
[388505911,1759222255675,-2220.43,0.00019899,2]
[388505912,1759222255684,-2364.99,0.00019899,2]
[388505913,1759222255693,-300.15772445,0.00019899,2]
[388505914,1759222255703,-616.74,0.00019899,2]
[388505915,1759222255712,-500.0,0.00019899,2]
[388505916,1759222255721,-705.11,0.00019899,2]
[388505917,1759222255730,-500.0,0.00019899,2]
[388505918,1759222255742,-1902.18,0.00019899,2]
[388505919,1759222255752,-625.65,0.00019899,2]
[388505920,1759222255761,-977.71,0.00019899,2]
[388505921,1759222255771,-2115.78,0.00019899,2]
[388505922,1759222255782,-500.0,0.00019899,2]
[388505923,1759222255791,-1019.17,0.00019899,2]
[388505924,1759222255801,-500.0,0.00019899,2]
[388505925,1759222255810,-1152.29,0.00019899,2]
[388505926,1759222255823,-500.0,0.00019899,2]
[388505927,1759222255832,-500.0,0.00019899,2]
[388505928,1759222255841,-500.0,0.00019899,2]
[388505929,1759222255851,-611.0,0.00019899,2]
[388505930,1759222255860,-500.0,0.00019899,2]
[388505931,1759222255869,-1179.56,0.00019899,2]
[388505932,1759222255878,-500.0,0.00019899,2]
[388505933,1759222255889,-1466.42,0.00019899,2]
[388505934,1759222255899,-500.0,0.00019899,2]
[388505935,1759222255908,-500.0,0.00019899,2]
[388505936,1759222255917,-500.0,0.00019899,2]
[388505937,1759222255927,-756.83,0.00019899,2]
[388505938,1759222255936,-650.29,0.00019899,2]
[388505939,1759222255946,-1672.64,0.00019899,2]
[388505940,1759222255956,-1404.13,0.00019899,2]
[388505941,1759222255965,-1187.87,0.00019899,2]
[388505942,1759222255975,-500.0,0.00019899,2]
[388505943,1759222255985,-500.0,0.00019899,2]
[388505944,1759222255995,-717.94,0.00019899,2]
[388505945,1759222256004,-500.0,0.00019899,2]